Cogmind - Beta 13 @@@ ROGUE MODE // 2024.05.29 @ 22:59:41 Player: COGMINDER69 Result: Destroyed self with Rocket Launcher Performance ------------- Evolutions (0) 0 Regions Visited (4) 800 Robots Destroyed (29) 145 Value Destroyed (403) 403 Prototype IDs (23) 460 Alien Tech Used (0) 0 Bonus (300) 300 TOTAL SCORE: 2108 Bonus ------- Aligned with FarCom 300 Cogmind --------- Core Integrity 0/250 Matter 269/300 Energy 239/250 System Corruption 2% Temperature Cool (0) Movement Rolling (90) Location -9/Mines Parts ------- > --- POWER (1) -------- Ion Engine > --- PROPULSION (2) --- Wheel Compact Wheel > --- UTILITY (2) ------ Medium Storage Unit Sensor Array > --- WEAPON (2) ------- Rocket Launcher Longsword +1 > --- INVENTORY (10) --- Light Ion Engine Small Matter Pod (50) Structural Scanner Terrain Scanner Improved Terrain Scanner Terrain Scan Processor Hacking Suite Peak State ------------ > --- POWER ------------ Ion Engine > --- PROPULSION ------- Wheel Compact Wheel > --- UTILITY ---------- Medium Storage Unit Sensor Array > --- WEAPON ----------- Rocket Launcher Longsword +1 > --- INVENTORY -------- Light Ion Engine Small Matter Pod Structural Scanner Terrain Scanner Improved Terrain Scanner Terrain Scan Processor Hacking Suite [Rating: 16] Favorites ----------- Power Ion Engine Engine Ion Engine Propulsion Light Treads Treads Light Treads Wheel Wheel Utility Medium Storage Unit Device Cooling System Storage Medium Storage Unit Weapon Medium Laser Energy Gun Medium Laser Ballistic Gun Assault Rifle Launcher Rocket Launcher Special Weapon Mining Laser Slashing Weapon Longsword +1 Build | -11 -10 -10 -10 -9 ------- Run | Yrd Mat Min Exi Min Slots Evolved . | . . . . . Power . | . . . . . Propulsion . | . . . . . Utility . | . . . . . Weapon . | . . . . . Parts Attached 27 | 6 5 14 1 1 Power 4 | 1 2 1 . . Engine 4 | 1 2 1 . . Core . | . . . . . Reactor . | . . . . . Propulsion 6 | 2 . 4 . . Treads 4 | 2 . 2 . . Leg . | . . . . . Wheel 2 | . . 2 . . Hover . | . . . . . Flight . | . . . . . Utility 5 | 1 3 1 . . Device 3 | . 2 1 . . Storage 2 | 1 1 . . . Processor . | . . . . . Hackware . | . . . . . Protection . | . . . . . Artifact . | . . . . . Weapon 12 | 2 . 8 1 1 Energy Gun 4 | 2 . 2 . . Energy Cannon . | . . . . . Ballistic Gun 2 | . . 2 . . Ballistic Cannon . | . . . . . Launcher 4 | . . 3 . 1 Special Weapon 1 | . . 1 . . Impact Weapon . | . . . . . Slashing Weapon 1 | . . . 1 . Piercing Weapon . | . . . . . Special Melee Weapon . | . . . . . Unidentified Prototypes . | . . . . . Parts Lost 9 | . . 9 . . Power . | . . . . . Propulsion 3 | . . 3 . . Utility 1 | . . 1 . . Weapon 5 | . . 5 . . Highest Loss Streak 3 | . . 3 . . To Critical Strikes 1 | . . 1 . . Average Slot Usage (%) 95 | . 97 96 78 . Engine 14 | . 14 14 14 . Treads 24 | . 28 25 . . Wheel 2 | . . . 28 . Device 13 | . 12 13 14 . Storage 14 | . 14 14 14 . Energy Gun 15 | . 28 11 . . Ballistic Gun 7 | . . 11 . . Launcher 1 | . . 1 . . Naked Turns . | . . . . . Heaviest Build 21 | 12 21 21 19 . Greatest Support 40 | 40 40 40 26 . Greatest Overweight (x) 1 | . . 1 . . Average Overweight (x) . | . . . . . Largest Inventory Capacity 10 | 8 10 10 10 10 Average Capacity 9 | 6 9 10 10 10 Most Carried 9 | 1 9 9 8 7 Average Carried 6 | . 5 6 8 7 Final Capacity 10 | 8 10 10 10 10 Final Carried 9 | 1 9 8 8 7 Class Distribution -------------------- 100% | Mutant Dominant Class ---------------- Mutant | -10/Materials Mutant | -10/Mines Mutant | -10/Exiles Mutant | -9/Mines Resources | -11 -10 -10 -10 -9 ----------- Run | Yrd Mat Min Exi Min Matter Collected 721 | 260 50 411 . . Remotely . | . . . . . Salvage Created 862 | . 587 270 . 5 Parts 41 | . 31 4 . 6 Haulers Intercepted 1 | . 1 . . . Recyclers Shooed 2 | . 1 1 . . Parts Field Recycled . | . . . . . Retrieved Matter . | . . . . . Parts Self-Destructed . | . . . . . Prevented . | . . . . . Kills | -11 -10 -10 -10 -9 ------- Run | Yrd Mat Min Exi Min Combat Hostiles Destroyed 32 | . 12 18 . 2 Melee 1 | . . 1 . . Guns 19 | . 11 8 . . AOE 11 | . . 9 . 2 Classes Destroyed 8 | . 7 1 . . Worker 4 | . 2 2 . . Builder 2 | . 1 1 . . Hauler 1 | . 1 . . . Recycler 3 | . 2 1 . . Operator 2 | . 2 . . . Swarmer 11 | . 6 3 . 2 Grunt 6 | . 6 . . . Assembled 15 | . . 15 . . Best Kill Streak 5 | . 5 3 . 2 Combat Bots Only 4 | . 4 3 . 2 Max Kills in Single Turn 3 | . 1 3 . 2 Gunslinging . | . . . . . Exploded 3 | . . 3 . 2 Melee 1 | . . 1 . . Uniques/NPCs Destroyed . | . . . . . Combat | -11 -10 -10 -10 -9 -------- Run | Yrd Mat Min Exi Min Hostile Shots Fired 96 | . 55 39 . 2 Missed 21 | . 16 4 . 1 Damage Taken 1397 | . 397 982 . 18 Core 255 | . 30 207 . 18 Absorbed by Shields . | . . . . . Core Remaining (%) 100 | 100 . . . . Volleys Fired 115 | . 48 66 . 1 Largest 2 | . 2 2 . 1 Hottest 100 | . 100 100 . 33 Shots Fired 184 | . 96 87 . 1 Gun 170 | . 96 74 . . Cannon . | . . . . . Launcher 13 | . . 12 . 1 Special 1 | . . 1 . . Kinetic 38 | . . 38 . . Thermal 133 | . 96 37 . . Explosive 13 | . . 12 . 1 Electromagnetic . | . . . . . Robot Hit Streak 7 | . 7 4 . 2 Robot Miss Streak 6 | . 6 3 . . Penetration Max . | . . . . . Secondary Targets 2 | . 2 . . . Max Gunslinging Chain 1 | . 1 . . . Shots Hit Robots 87 | . 53 33 . 1 Core Hits 61 | . 28 31 . 2 Critical Kills . | . . . . . Critical Parts Destroyed . | . . . . . Critical Strikes 6 | . 5 1 . . Burn 6 | . 5 1 . . Melee Attacks . | . . . . . Impact . | . . . . . Slashing . | . . . . . Piercing . | . . . . . Sneak Attacks . | . . . . . Combat Hostiles . | . . . . . Follow-up Attacks . | . . . . . Damage Inflicted 1824 | . 694 880 . 250 Guns 1053 | . 685 368 . . Cannons . | . . . . . Explosions 746 | . . 496 . 250 Melee . | . . . . . Ramming 25 | . 9 16 . . Kinetic 204 | . . 204 . . Thermal 951 | . 685 164 . 102 Explosive 644 | . . 496 . 148 Electromagnetic . | . . . . . Impact . | . . . . . Slashing . | . . . . . Piercing . | . . . . . Highest Corruption 2 | . . 2 2 2 Average Corruption 2 | . . 2 2 2 Corruption Purged . | . . . . . Corruption Blocked . | . . . . . Effects 6 | . . 5 1 . Message Errors 2 | . . 1 1 . Matter Fused 2 | . . 2 . . Energy Discharges 1 | . . 1 . . Data Loss (minor) 1 | . . 1 . . Overload Shots . | . . . . . Overflow Damage 24 | . . 18 . 6 Projectiles . | . . . . . Explosions 24 | . . 18 . 6 Melee . | . . . . . Knockbacks . | . . . . . Impact . | . . . . . Kinetic . | . . . . . Secondary . | . . . . . Self-Inflicted Damage 145 | . . 122 . 23 Shots 5 | . . 4 . 1 Rammed 5 | . . 5 . . Targets Rammed 8 | . 1 7 . . Kicked . | . . . . . Crushed 3 | . 1 2 . . Highest Temperature 323 | . 323 120 . . Average Temperature 83 | . 131 28 . . Received Heat Transfer 182 | . 162 20 . . Siege Activations . | . . . . . Robots Corrupted . | . . . . . Combat Hostiles . | . . . . . Parts Fried . | . . . . . Impact Corruptions . | . . . . . Robots Melted 2 | . 2 . . . Combat Hostiles 1 | . 1 . . . Parts Melted 4 | . 4 . . . Heat Transferred 3060 | . 2405 555 . 100 Parts Sabotaged . | . . . . . Parts Stolen . | . . . . . Parts Stripped . | . . . . . Power Chain Reactions . | . . . . . Alert | -11 -10 -10 -10 -9 ------- Run | Yrd Mat Min Exi Min Peak Influence 226 | . 226 128 . . Initial 37 | . . 37 . . Average 40 | . 96 22 . . Maximum Alert Level 1 | . 1 . . . Low Security (%) 96 | 100 84 100 . 100 Level 1 3 | . 15 . . . Level 2 . | . . . . . Level 3 . | . . . . . Level 4 . | . . . . . Level 5 . | . . . . . High Security . | . . . . . Max Security . | . . . . . Squads Dispatched 2 | . 2 . . . Investigation . | . . . . . Extermination . | . . . . . Reinforcement 2 | . 2 . . . Assault . | . . . . . Garrison . | . . . . . Intercept . | . . . . . Searches Triggered . | . . . . . Construction Impeded . | . . . . . Haulers Reinforced . | . . . . . Active Scanning Responses . | . . . . . Cargo Convoy Interrupts . | . . . . . Stealth | -11 -10 -10 -10 -9 --------- Run | Yrd Mat Min Exi Min Distress Signals . | . . . . . Communications Jammed . | . . . . . Distress Signals . | . . . . . Times Spotted 48 | . 19 26 . 3 Peak Tracking Total 3 | . 3 3 . 3 Tactical Retreats 10 | . 2 8 . . Traps | -11 -10 -10 -10 -9 ------- Run | Yrd Mat Min Exi Min Traps Triggered . | . . . . . Indirectly . | . . . . . Trap Hack Attempts . | . . . . . Triggered . | . . . . . Disarmed 12 | . 12 . . . Reprogrammed . | . . . . . Reused . | . . . . . Traps Extracted . | . . . . . Installed . | . . . . . Triggered . | . . . . . Machines | -11 -10 -10 -10 -9 ---------- Run | Yrd Mat Min Exi Min Machines Disabled 1 | . . . . 1 Max in Single Turn 1 | . . . . 1 Machines Repaired . | . . . . . Machines Dismantled . | . . . . . Machines Sabotaged . | . . . . . Overloaded Fab Kills . | . . . . . Hacking | -11 -10 -10 -10 -9 --------- Run | Yrd Mat Min Exi Min Machines Accessed 4 | . 3 . 1 . Terminals 3 | . 3 . . . Fabricators . | . . . . . Repair Stations . | . . . . . Recycling Units . | . . . . . Scanalyzers . | . . . . . Garrison Access . | . . . . . Total Hacks 13 | . 12 . 1 . Successful 6 | . 5 . 1 . Failed 7 | . 7 . . . Catastrophic 2 | . 2 . . . Database Lockouts . | . . . . . Manual 11 | . 10 . 1 . Terminals 12 | . 12 . . . Fabricators . | . . . . . Repair Stations . | . . . . . Recycling Units . | . . . . . Scanalyzers . | . . . . . Garrison Access . | . . . . . Terminal Hacks 5 | . 4 . 1 . Locate Traps 1 | . 1 . . . Disarm Traps 2 | . 2 . . . Hauler Manifests 1 | . 1 . . . Derelict Proto ID Bank 1 | . . . 1 . Fabricator Hacks . | . . . . . Repair Station Hacks . | . . . . . Recycling Unit Hacks . | . . . . . Scanalyzer . | . . . . . Garrison Access Hacks . | . . . . . Unauthorized Hacks 1 | . 1 . . . Terminals 1 | . 1 . . . Botnet 1 | . 1 . . . Fabricators . | . . . . . Repair Stations . | . . . . . Recycling Units . | . . . . . Scanalyzers . | . . . . . Garrison Access . | . . . . . Data Cores Recovered . | . . . . . Used . | . . . . . Hacking Detections 2 | . 2 . . . Full Trace Events 1 | . 1 . . . Feedback Events . | . . . . . Feedback Blocked . | . . . . . Robot Schematics Acquired . | . . . . . Robots Built . | . . . . . Authchips . | . . . . . Time . | . . . . . Total Robot Build Rating . | . . . . . Part Schematics Acquired . | . . . . . Parts Built . | . . . . . Authchips . | . . . . . Time . | . . . . . Total Part Build Rating . | . . . . . Parts Repaired . | . . . . . Time . | . . . . . Parts Recycled . | . . . . . Recycled Matter . | . . . . . Retrieved Matter . | . . . . . Retrieved Components . | . . . . . Parts Scanalyzed . | . . . . . Part Schematics Acquired . | . . . . . Parts Damaged . | . . . . . Bothacking | -11 -10 -10 -10 -9 ------------ Run | Yrd Mat Min Exi Min Used RIF Installer . | . . . . . Robots Hacked . | . . . . . Non-combat . | . . . . . Combat . | . . . . . Robot Hacks Applied . | . . . . . Relay Couplers Released . | . . . . . Fabnet Peak Effective % . | . . . . . Robots Rewired . | . . . . . Allies Hacked . | . . . . . Hacks Repelled . | . . . . . Allies | -11 -10 -10 -10 -9 -------- Run | Yrd Mat Min Exi Min Total Allies . | . . . . . Largest Group . | . . . . . Highest-Rated Group . | . . . . . Highest-Rated Ally . | . . . . . Total Orders . | . . . . . Ally Attacks . | . . . . . Total Damage . | . . . . . Kills . | . . . . . Allies Corrupted . | . . . . . Allies Melted . | . . . . . Intel | -11 -10 -10 -10 -9 ------- Run | Yrd Mat Min Exi Min Robot Analysis Total . | . . . . . Derelict Logs Recovered 1 | . . 1 . . Drone Launches . | . . . . . Drone Recoveries . | . . . . . Exploration | -11 -10 -10 -10 -9 ------------- Run | Yrd Mat Min Exi Min Turns Passed 3916 | 74 933 2682 226 1 Spaces Moved 1582 | 43 474 822 243 . Core 3 | 3 . . . . Treads 1252 | 40 474 738 . . Legs . | . . . . . Wheels 327 | . . 84 243 . Hover . | . . . . . Flight . | . . . . . Fastest Speed 50 | 50 160 90 90 . Average Speed 147 | 152 160 157 90 . Slowest Speed 240 | 160 160 240 90 . Overloaded Moves . | . . . . . Propulsion Burnouts . | . . . . . Robots Hopped . | . . . . . Cave-ins Triggered . | . . . . . Exploration Rate (%) 47 | 5 80 79 67 4 Regions Visited 4 Branch Regions 3 Pre-discovered Areas . | . . . . . Known Exits Taken . | . . . . . Unknown Exits Taken 4 | 1 1 1 1 . Scrap Searched 1 | . . 1 . . Spaces Dug 1 | . . 1 . . Terrain Destroyed 111 | . . 100 . 11 Melee . | . . . . . Projectile 1 | . . 1 . . AOE 110 | . . 99 . 11 Terrain Rammed . | . . . . . Walls Destroyed . | . . . . . Machines Disabled . | . . . . . Actions | -11 -10 -10 -10 -9 --------- Run | Yrd Mat Min Exi Min Total 2964 | 49 552 2112 249 2 Wait 1215 | . 14 1195 6 . Move 1578 | 42 473 821 242 . Hop . | . . . . . Pick Up 13 | 1 7 5 . . Fast Attach 14 | 6 3 4 1 . Attach 7 | . . 6 . 1 Detach 2 | . 1 1 . . Swap 6 | . 2 4 . . Drop 6 | . 3 3 . . Fire 115 | . 48 66 . 1 Melee . | . . . . . Ram . | . . . . . Kick . | . . . . . Crush 8 | . 1 7 . . Escape Stasis . | . . . . . Rewire . | . . . . . Trap . | . . . . . Miscellaneous . | . . . . . Route ------- -11/Scrapyard -10/Materials (discovered 3 exits: [*Mat x2] / [*Min]) -10/Mines (discovered 3 exits: [*Mat x2] / *Exi) -10/Exiles -9/Mines History --------- Turn | Location | Event 39 | -11/Scrapyard | Discovered new exit (range 15) 75 | -11/Scrapyard | Entered Materials 303 | -10/Materials | Build established: Mutant 497 | -10/Materials | Discovered new exit (range 13) 594 | -10/Materials | Discovered new exit (range 11) 874 | -10/Materials | Discovered new exit (range 13) 1008 | -10/Materials | Entered Mines 1086 | -10/Mines | Learned 2 Materials zone layouts 1165 | -10/Mines | Discovered new exit (range 10) 1331 | -10/Mines | Discovered new exit (range 7) 1446 | -10/Mines | Assembled infested the area 1485 | -10/Mines | Core integrity fell below 50% 1517 | -10/Mines | Lost 3 parts (2n1w) 2216 | -10/Mines | Core integrity fell below 20% 3407 | -10/Mines | Received a Rocket Launcher from a helpful Derelict 3685 | -10/Mines | Deemed a non-threat by the Exiles lab entrance 3685 | -10/Mines | Discovered new exit (range 5) 3690 | -10/Mines | Entered Exiles 3714 | -10/Exiles | Met 8R-AWN 3729 | -10/Exiles | Met EX-HEX 3753 | -10/Exiles | Met EX-BIN 3763 | -10/Exiles | Aligned with FarCom system 3764 | -10/Exiles | Given EX-Vault access code 3786 | -10/Exiles | Opened EX-Vault 3794 | -10/Exiles | Found Longsword +1 3815 | -10/Exiles | Warned to stay clear of 0b10 Research branches 3842 | -10/Exiles | Met EX-DEC 3905 | -10/Exiles | Discovered new exit (range 14) 3916 | -10/Exiles | Left Exiles lab with Longsword +1 3916 | -10/Exiles | Entered Mines 3917 | -9/Mines | Destroyed self with Rocket Launcher Last Messages --------------- after you leave. Most certainly not to something like 1234 which I did last time as a little joke and some thief managed to sneak in here and steal a few of HEX's prototypes. EX-DEC: Ah I see we have a visitor. One wrong move in here and I'll invert your atomic chain! EX-DEC: "Oops, I hope HEX didn't hear that..." L7-1LF(z): Why did DEC have to put these flashy spikey things everywhere, they really get in the way, you know? JMAA,3VTR3UBXLWBYRP4T EXIT=FOUND LOCATION=UNKNOWN GOAL=ESCAPE Receiving FarCom transmissions... Destroyed Flight Unit. S-10 Pest destroyed. Plasma Injector explodes. S-10 Pest destroyed. Map ----- +----------------------------------------------------+ | ?????????????????????????????????????????????????? | | ?????????????????????????????????????????????????? | | ?????????????????????????????????????????????????? | | ?????????????????????????????????????????????????? | | ?????????????????????????????????????????????????? | | ?????????????????????????????????????????????????? | | ?????????????????????????????????????????????????? | | ?????????????????????????????????????????????????? | | ?????????????????????????????????????????????????? | | ?????????????????????????????????????????????????? | | ?????????????????????????????????????????????????? | | ?????????????????????????????????????????????????? | | ?????????????????????????????????????????????????? | | ?????????????????????????????????????????????????? | | ?????????????????????????????????????????????????? | | ?????????????????????????????????????????????????? | | ?????????????????????????????????????????????????? | | ?????????????????????????????????????????????????? | | ????????????????????????????####?????????????????? | | ??????????????????????????? ??????????????????? | | ??????????????????????????? ???????????????????? | | ??????????????????????????# #???????????????????? | | ?????????????????????????? ####????????????????? | | ???????????????????????### [ #????????????????? | | ???????????????????????# *%= #????????????????? | | ???????????????????????# @ %= #????????????????? | | ???????????????????????# * #????????????????? | | ?????????????????????? #??????????????? | | ????????????????????? s #??????????????? | | ????????????????????#### ;# #??????????????? | | ???????????????????????# ##????????????????? | | ???????????????????????#### ####?????????????????? | | ??????????????????????????? #????????????????????? | | ??????????????????????????? #????????????????????? | | ??????????????????????????? ????????????????????? | | ????????????????????????????#????????????????????? | | ?????????????????????????????????????????????????? | | ?????????????????????????????????????????????????? | | ?????????????????????????????????????????????????? | | ?????????????????????????????????????????????????? | | ?????????????????????????????????????????????????? | | ?????????????????????????????????????????????????? | | ?????????????????????????????????????????????????? | | ?????????????????????????????????????????????????? | | ?????????????????????????????????????????????????? | | ?????????????????????????????????????????????????? | | ?????????????????????????????????????????????????? | | ?????????????????????????????????????????????????? | | ?????????????????????????????????????????????????? | | ?????????????????????????????????????????????????? | +----------------------------------------------------+ Best States ------------- Heat Dissipation 47 Energy Generation 10 Energy Capacity 250 Matter Stores 300 Matter Capacity 300 Sight Range 16 Robot Scan Range 14 Terrain Scan Range 14 Terrain Scan Density 10 Evasion (%) 42 Recoil Reduction 2 Item Schematics ----------------- None Robot Schematics ------------------ None Fabricated ------------ Nothing Alien Tech Used ----------------- None Achievements -------------- Exterminator root@ Challenges ------------ None Game ------ Seed UtilityTachyonLeg Manual? 0 Play Time 00:22:40 Cumulative 6.5 hours Start 2024.05.29 @ 22:33:26 End 2024.05.29 @ 22:59:41 Sessions 1 Manual Loads 0 Difficulty Rogue Special Mode None Game No. 16 Rogue 16 Adventurer 0 Explorer 0 Win Type - Total 0 Types 0/0/0/0/0/0/0/0/0 Lore% 12 Gallery% 11 Achievement% 16 Wizard Run 0 Options --------- Layout 1 ASCII 0 Keyboard 0 Movement Mouse Keybinds 0 Fullscreen 2 Font 32/Cog Map View 50x35 Zoom Use 0% Tactical HUD 0 Map Filters NONE Filters NONE Steam 1 RUN: f213f9bd-1563-4214-9d66-939a591c2abd